Cogmind - Beta 14 @@@ ROGUE MODE // 2024.11.01 @ 12:02:41 Player: NextToZero Result: Destroyed by Y-45 Defender with Beam Rifle Performance ------------- Evolutions (1) 500 Regions Visited (3) 600 Robots Destroyed (24) 120 Value Destroyed (309) 309 Prototype IDs (3) 60 Alien Tech Used (0) 0 Bonus (0) 0 TOTAL SCORE: 1589 Bonus ------- None Cogmind --------- Core Integrity 0/400 Matter 259/300 Energy 280/280 System Corruption 0% Temperature Cool (9) Movement Core (150) Ox2 Location -9/Materials Parts ------- > --- POWER (1) -------- Heavy Ion Engine > --- PROPULSION (2) --- (None) > --- UTILITY (3) ------ Terrain Scan Processor > --- WEAPON (3) ------- (None) > --- INVENTORY (5) ---- Light Ion Engine Improved Flight Unit Large Matter Pod (0) Sensor Array Core Shielding Peak State ------------ > --- POWER ------------ Light Ion Engine > --- PROPULSION ------- Compact Wheel Compact Wheel > --- UTILITY ---------- Large Storage Unit Improved Terrain Scanner Terrain Scan Processor > --- WEAPON ----------- Improved Medium Laser Improved Assault Rifle Mini Grenade Launcher > --- INVENTORY -------- Light Ion Engine Light Treads Wheel Wheel Wheel Compact Wheel Heat Sink Small Storage Unit Large Matter Pod Large Matter Pod Sensor Array Salvage Targeting Computer Core Shielding Light Assault Rifle [Rating: 18] Favorites ----------- Power Ion Engine Engine Ion Engine Propulsion Wheel Treads Light Treads Wheel Wheel Utility Improved Terrain Scanner Device Improved Terrain Scanner Storage Large Storage Unit Processor Terrain Scan Processor Weapon Assault Rifle Energy Gun EM Shotgun Ballistic Gun Assault Rifle Launcher Rocket Launcher Special Weapon Enhanced Flamer Build | -11 -10 -10 -9 ------- Run | Yrd Mat Min Mat Slots Evolved 2 | . . . 2 Power . | . . . . Propulsion . | . . . . Utility 1 | . . . 1 Weapon 1 | . . . 1 Parts Attached 32 | 7 . 10 15 Power 4 | 1 . 1 2 Engine 4 | 1 . 1 2 Core . | . . . . Reactor . | . . . . Propulsion 10 | 2 . 6 2 Treads 1 | . . . 1 Leg . | . . . . Wheel 9 | 2 . 6 1 Hover . | . . . . Flight . | . . . . Utility 5 | 2 . 1 2 Device 2 | 1 . . 1 Storage 2 | 1 . 1 . Processor 1 | . . . 1 Hackware . | . . . . Protection . | . . . . Artifact . | . . . . Weapon 13 | 2 . 2 9 Energy Gun 5 | . . . 5 Energy Cannon . | . . . . Ballistic Gun 5 | 2 . . 3 Ballistic Cannon . | . . . . Launcher 2 | . . 1 1 Special Weapon 1 | . . 1 . Impact Weapon . | . . . . Slashing Weapon . | . . . . Piercing Weapon . | . . . . Special Melee Weapon . | . . . . Unidentified Prototypes 3 | . . . 3 Parts Lost 17 | . 1 1 15 Power 2 | . . . 2 Propulsion 5 | . 1 . 4 Utility 2 | . . . 2 Weapon 8 | . . 1 7 Highest Loss Streak 8 | . 1 1 8 To Critical Strikes 1 | . . . 1 Average Slot Usage (%) 90 | . 100 92 85 Engine 12 | . 14 14 9 Wheel 23 | . 28 27 19 Device 12 | . 14 14 11 Storage 12 | . 14 14 11 Processor 4 | . . . 11 Energy Gun 3 | . . . 8 Ballistic Gun 13 | . 28 13 9 Launcher 6 | . . 8 4 Peak Build Rating 18 | 9 9 13 18 Average Rating 10 | 6 8 10 13 On Entrance 6 | . 9 8 10 Naked Turns . | . . . . Heaviest Build 33 | 14 14 32 33 Greatest Support 32 | 20 20 32 32 Greatest Overweight (x) 2 | . 1 1 2 Average Overweight (x) . | . . . . Largest Inventory Capacity 15 | 8 8 15 15 Average Capacity 13 | 7 8 14 14 Most Carried 15 | 6 6 15 15 Average Carried 11 | 2 6 13 13 Final Capacity 15 | 8 8 15 5 Final Carried 15 | 6 6 15 5 Class Distribution -------------------- 57% | Mutant 28% | Scavenger-Mutant 14% | Scavenger-Skirmisher Dominant Class ---------------- Mutant | -10/Materials Mutant | -10/Mines Scavenger-Mutant | -9/Materials Resources | -11 -10 -10 -9 ----------- Run | Yrd Mat Min Mat Matter Collected 805 | 280 42 346 137 Remotely . | . . . . Salvage Created 533 | 96 40 176 221 Parts 44 | 5 8 10 21 Haulers Intercepted 2 | . . . 2 Recyclers Shooed . | . . . . Parts Field Recycled . | . . . . Retrieved Matter . | . . . . Parts Self-Destructed . | . . . . Prevented . | . . . . Kills | -11 -10 -10 -9 ------- Run | Yrd Mat Min Mat Combat Hostiles Destroyed 14 | . 2 2 10 Guns 6 | . 2 . 4 AOE 8 | . . 2 6 Classes Destroyed 8 | 2 2 2 2 Worker 1 | . . 1 . Builder 1 | . 1 . . Tunneler 3 | 2 . . 1 Hauler 2 | . . . 2 Recycler 3 | 1 . 2 . Swarmer 10 | . 2 . 8 Grunt 3 | . . 2 1 Sentry 1 | . . . 1 Best Kill Streak 6 | 3 3 4 6 Combat Bots Only 5 | . 2 2 5 Max Kills in Single Turn 4 | 1 1 2 4 Gunslinging . | . . . . Exploded 3 | . . 1 3 Melee . | . . . . Uniques/NPCs Destroyed . | . . . . Combat | -11 -10 -10 -9 -------- Run | Yrd Mat Min Mat Hostile Shots Fired 176 | . 36 8 132 Missed 39 | . 10 3 26 Damage Taken 1796 | . 259 213 1324 Core 513 | . 40 72 401 Absorbed by Shields . | . . . . Core Remaining (%) 77 | 100 . 55 . Volleys Fired 47 | 8 9 5 25 Largest 3 | 2 2 2 3 Hottest 113 | 40 40 113 109 Shots Fired 87 | 16 18 9 44 Gun 74 | 16 18 2 38 Cannon . | . . . . Launcher 10 | . . 4 6 Special 3 | . . 3 . Kinetic 53 | 16 18 2 17 Thermal 16 | . . 3 13 Explosive 10 | . . 4 6 Electromagnetic 8 | . . . 8 Robot Hit Streak 8 | 3 4 5 8 Robot Miss Streak 6 | 5 3 1 6 Penetration Max . | . . . . Secondary Targets . | . . . . Shots Hit Robots 39 | 5 8 7 19 Core Hits 33 | 4 5 7 17 Critical Kills . | . . . . Critical Parts Destroyed . | . . . . Critical Strikes 2 | . . 2 . Burn 2 | . . 2 . Melee Attacks . | . . . . Impact . | . . . . Slashing . | . . . . Piercing . | . . . . Sneak Attacks . | . . . . Combat Hostiles . | . . . . Follow-up Attacks . | . . . . Damage Inflicted 1254 | 86 87 300 781 Guns 395 | 86 87 12 210 Cannons . | . . . . Explosions 811 | . . 253 558 Melee . | . . . . Ramming 14 | . . 1 13 Kinetic 283 | 86 87 12 98 Thermal 234 | . . 34 200 Explosive 693 | . . 253 440 Electromagnetic 30 | . . . 30 Impact . | . . . . Slashing . | . . . . Piercing . | . . . . Highest Corruption . | . . . . Average Corruption . | . . . . Corruption Purged . | . . . . Corruption Blocked . | . . . . Overload Shots . | . . . . Overflow Damage 20 | . . 8 12 Projectiles . | . . . . Explosions 20 | . . 8 12 Melee . | . . . . Knockbacks . | . . . . Impact . | . . . . Kinetic . | . . . . Secondary . | . . . . Self-Inflicted Damage 352 | . . 155 197 Shots 9 | . . 4 5 Rammed 10 | . . 1 9 Targets Rammed 10 | . . 1 9 Kicked . | . . . . Crushed . | . . . . Highest Temperature 146 | . 12 146 143 Average Temperature 73 | . 10 81 76 Received Heat Transfer 381 | . 99 33 249 Siege Activations . | . . . . Robots Corrupted . | . . . . Combat Hostiles . | . . . . Parts Fried . | . . . . Impact Corruptions . | . . . . Robots Melted . | . . . . Combat Hostiles . | . . . . Parts Melted . | . . . . Heat Transferred 783 | . . 560 223 Parts Sabotaged . | . . . . Parts Stolen . | . . . . Parts Stripped . | . . . . Power Chain Reactions 2 | . . . 2 Alert | -11 -10 -10 -9 ------- Run | Yrd Mat Min Mat Peak Influence 361 | 15 94 113 361 Initial 43 | . 9 32 43 Average 109 | 6 56 65 199 Maximum Alert Level 1 | . . . 1 Low Security (%) 76 | 100 100 100 40 Level 1 23 | . . . 59 Level 2 . | . . . . Level 3 . | . . . . Level 4 . | . . . . Level 5 . | . . . . High Security . | . . . . Max Security . | . . . . Squads Dispatched 3 | . 2 . 1 Investigation . | . . . . Extermination . | . . . . Reinforcement 3 | . 2 . 1 Assault . | . . . . Garrison . | . . . . Intercept . | . . . . Searches Triggered . | . . . . Construction Impeded . | . . . . Haulers Reinforced . | . . . . Active Scanning Responses . | . . . . Cargo Convoy Interrupts . | . . . . Stealth | -11 -10 -10 -9 --------- Run | Yrd Mat Min Mat Distress Signals 2 | . 2 . . Communications Jammed . | . . . . Distress Signals . | . . . . Times Spotted 42 | . 19 2 21 Peak Tracking Total 15 | . 15 2 7 Tactical Retreats 1 | . . . 1 Traps | -11 -10 -10 -9 ------- Run | Yrd Mat Min Mat Traps Triggered . | . . . . Indirectly . | . . . . Trap Hack Attempts . | . . . . Triggered . | . . . . Disarmed . | . . . . Reprogrammed . | . . . . Reused . | . . . . Traps Extracted . | . . . . Installed . | . . . . Triggered . | . . . . Machines | -11 -10 -10 -9 ---------- Run | Yrd Mat Min Mat Machines Disabled . | . . . . Max in Single Turn . | . . . . Machines Repaired . | . . . . Machines Dismantled . | . . . . Machines Sabotaged . | . . . . Overloaded Fab Kills . | . . . . Hacking | -11 -10 -10 -9 --------- Run | Yrd Mat Min Mat Machines Accessed 2 | . . . 2 Terminals 1 | . . . 1 Fabricators . | . . . . Repair Stations . | . . . . Recycling Units 1 | . . . 1 Scanalyzers . | . . . . Garrison Access . | . . . . Total Hacks 10 | . . . 10 Successful 5 | . . . 5 Failed 5 | . . . 5 Catastrophic 1 | . . . 1 Database Lockouts . | . . . . Manual . | . . . . Terminals 5 | . . . 5 Fabricators . | . . . . Repair Stations . | . . . . Recycling Units 5 | . . . 5 Scanalyzers . | . . . . Garrison Access . | . . . . Terminal Hacks 2 | . . . 2 Locate Traps 1 | . . . 1 Zone Layout 1 | . . . 1 Fabricator Hacks . | . . . . Repair Station Hacks . | . . . . Recycling Unit Hacks 3 | . . . 3 Process 1 | . . . 1 Report Inventory 1 | . . . 1 Retrieve Matter 1 | . . . 1 Scanalyzer . | . . . . Garrison Access Hacks . | . . . . Unauthorized Hacks . | . . . . Terminals . | . . . . Fabricators . | . . . . Repair Stations . | . . . . Recycling Units . | . . . . Scanalyzers . | . . . . Garrison Access . | . . . . Data Cores Recovered . | . . . . Used . | . . . . Hacking Detections 2 | . . . 2 Full Trace Events 1 | . . . 1 Feedback Events . | . . . . Feedback Blocked . | . . . . Robot Schematics Acquired . | . . . . Robots Built . | . . . . Authchips . | . . . . Time . | . . . . Total Robot Build Rating . | . . . . Part Schematics Acquired . | . . . . Parts Built . | . . . . Authchips . | . . . . Time . | . . . . Total Part Build Rating . | . . . . Parts Repaired . | . . . . Time . | . . . . Parts Recycled . | . . . . Recycled Matter 4 | . . . 4 Retrieved Matter 4 | . . . 4 Retrieved Components . | . . . . Parts Scanalyzed . | . . . . Part Schematics Acquired . | . . . . Parts Damaged . | . . . . Bothacking | -11 -10 -10 -9 ------------ Run | Yrd Mat Min Mat Used RIF Installer . | . . . . Robots Hacked . | . . . . Non-combat . | . . . . Combat . | . . . . Robot Hacks Applied . | . . . . Relay Couplers Released . | . . . . Fabnet Peak Effective % . | . . . . Robots Rewired . | . . . . Allies Hacked . | . . . . Hacks Repelled . | . . . . Allies | -11 -10 -10 -9 -------- Run | Yrd Mat Min Mat Total Allies . | . . . . Largest Group . | . . . . Highest-Rated Group . | . . . . Highest-Rated Ally . | . . . . Total Orders . | . . . . Ally Attacks . | . . . . Total Damage . | . . . . Kills . | . . . . Allies Corrupted . | . . . . Allies Melted . | . . . . Intel | -11 -10 -10 -9 ------- Run | Yrd Mat Min Mat Robot Analysis Total . | . . . . Derelict Logs Recovered . | . . . . Drone Launches . | . . . . Drone Recoveries . | . . . . Exploration | -11 -10 -10 -9 ------------- Run | Yrd Mat Min Mat Turns Passed 798 | 99 74 316 309 Spaces Moved 589 | 74 59 281 175 Core 2 | 1 . . 1 Treads 1 | . . . 1 Legs . | . . . . Wheels 586 | 73 59 281 173 Hover . | . . . . Flight . | . . . . Fastest Speed 50 | 50 80 95 100 Average Speed 95 | 79 81 96 106 Slowest Speed 240 | 80 95 105 240 Overloaded Moves . | . . . . Propulsion Burnouts . | . . . . Robots Hopped . | . . . . Cave-ins Triggered . | . . . . Exploration Rate (%) 24 | 4 20 58 17 Regions Visited 3 Branch Regions 1 Pre-discovered Areas 1 | . . 1 . Known Exits Taken . | . . . . Unknown Exits Taken 3 | 1 1 1 . Scrap Searched 1 | . . 1 . Spaces Dug 6 | . . . 6 Terrain Destroyed 100 | . . 48 52 Melee . | . . . . Projectile . | . . . . AOE 100 | . . 48 52 Terrain Rammed . | . . . . Walls Destroyed . | . . . . Machines Disabled . | . . . . Actions | -11 -10 -10 -9 --------- Run | Yrd Mat Min Mat Total 732 | 96 69 320 247 Wait 10 | . . . 10 Move 586 | 73 58 280 175 Hop . | . . . . Pick Up 32 | 8 1 15 8 Fast Attach 12 | 5 . 2 5 Attach 11 | 2 . 1 8 Detach . | . . . . Swap 9 | . . 7 2 Drop 15 | . 1 9 5 Fire 47 | 8 9 5 25 Melee . | . . . . Ram 4 | . . 1 3 Kick . | . . . . Crush 6 | . . . 6 Escape Stasis . | . . . . Rewire . | . . . . Trap . | . . . . Miscellaneous . | . . . . Route ------- -11/Scrapyard -10/Materials -10/Mines -9/Materials History --------- Turn | Location | Event 21 | -11/Scrapyard | Discovered new exit (range 15) 100 | -11/Scrapyard | Entered Materials 170 | -10/Materials | Discovered new exit (range 5) 174 | -10/Materials | Entered Mines 175 | -10/Mines | Learned location of Storage (-9) 186 | -10/Mines | Met a Derelict bent on vengeance 289 | -10/Mines | Received a Rocket Launcher from a helpful Derelict 312 | -10/Mines | Build established: Mutant 348 | -10/Mines | A weapon hastily lodged in a ceiling crevice suddenly fell to the ground 476 | -10/Mines | Discovered new exit (range 15) 490 | -10/Mines | Entered Materials 490 | -9/Materials | Evolved 2 slots: Utility x1, Weapon x1 750 | -9/Materials | Lost 5 parts (1p1n3w) 764 | -9/Materials | Core integrity fell below 50% 793 | -9/Materials | Core integrity fell below 20% 799 | -9/Materials | Destroyed by Y-45 Defender with Beam Rifle Last Messages --------------- 00754_ Critical hit (Destroy). 00754_ Hvy. Ion Engine destroyed. 00762_ Com. Wheel destroyed. 00773_ S-10 Pest destroyed. 00779_ Com. Wheel destroyed. 00779_ Slammed into S-10 Pest. 00780_ Acquired 15 matter. 00782_ Slammed into S-10 Pest. 00783_ Sml. Laser destroyed. 00784_ Slammed into Y-45 Defender. 00786_ S-10 Pest destroyed. 00786_ Slammed into Y-45 Defender. 00789_ U-05 Engineer builds a Wall. 00791_ Slammed into Y-45 Defender. 00792_ Imp. Terrain Scanner destroyed. 00792_ Lgt. Treads destroyed. 00793_ Lrg. Storage Unit destroyed. 00793_ U-05 Engineer lays Concrete. 00793_ R-06 Scavenger collects Ion Engine. 00794_ Slammed into Y-45 Defender. Map ----- +----------------------------------------------------+ | | | | | | | | | | | | | | | | | | | | | | | | | | | | | | | ##??#############??#########??#??????????? | | #?# """"" #?# #####??????????? | | " #?# """"" ### ##?????????????? | | " # # """"" ? ?## #????#?????????? | | " ### ??## #???? ?#??????? | | #?# #?# # ?????#???????? | | #### #####?# #??????????? ??? | | ###### = #?# #?? ??"?? ?????? | | ![ %[= ### # ??? ????? ??? | | ## # # ### = #? ???????????? | | ## ## # ### @#?#?#??#???????? | | ## ## # # Y ###?#??#??#????? | | ## ### # !!# ##+####### ##??? | | ## ### #u r ===== #???? | | ## ### "T" # = ** !!! #??#? | | ## ### # * ####/####### #?#?? | | ## ########### # # # = % #?## ???#?? | | ## ##?# # # # """""#??#???????? | | ## #### """ ##### """""#?##?? ????? | | ?# + """ %# #?### """""##????? ??? | | ## #### """ "# ##### """""#?###??????? | | ## #### /# ##??# """""#?#????????? | | #? #### ! # #???# """""##???#?????? | | #? ??#####+### ##### """??#?##??#????? | | ? ?? ??? ? ##?## ???????#????? | | ?? ? ? ##??######??#????#???#??? | | # ???#??#???##+#######??##??#???##??????? | | ##????????? ????? ?? #?##???#???????????? | | ??????????? ??? ???##?#??##??????????? | | ???? ? ???????????????#????##?##????????? | | ???????????????"?S?"????#?## ???????????? | | ???????????????????? ????? ?????????????? | | ? ?????????????????????"????????????????? | | ????????????????????????????????????????? | | ????????????????????????????????????????? | +----------------------------------------------------+ Best States ------------- Heat Dissipation 28 Energy Generation 14 Energy Capacity 280 Matter Stores 300 Matter Capacity 300 Sight Range 16 Terrain Scan Range 16 Terrain Scan Density 85 Evasion (%) 44 Recoil Reduction 1 Item Schematics ----------------- None Robot Schematics ------------------ None Fabricated ------------ Nothing Alien Tech Used ----------------- None Achievements -------------- None Challenges ------------ None Game ------ Seed ComponentRiotSegregator Manual? 0 Play Time 00:10:45 Cumulative 28.0 hours Start 2024.11.01 @ 07:58:44 End 2024.11.01 @ 12:02:41 Sessions 3 Manual Loads 0 Difficulty Rogue Special Mode None Game No. 35 Rogue 35 Adventurer 0 Explorer 0 Win Type - Total 0 Types 0/0/0/0/0/0/0/0/0 Lore% 14 Gallery% 35 Achievement% 31 Wizard Run 0 Options --------- Layout 0 ASCII 0 Keyboard 0 Movement Mouse Keybinds 0 Fullscreen 1 Font 36/Smallcaps Map View 38x25 Zoom Use 99% Tactical HUD 1 Map Filters NONE Filters NONE Steam 1 RUN: d89675ff-0abc-4d4a-9920-ff6b6158526f